[Event "Berliner IM-Turnier 2025"]
[Site "Berlin"]
[Date "2025.02.25"]
[Round "2.8"]
[White "Jakubowski, Krzysztof"]
[Black "Ahmadinia, Ebrahim"]
[Result "1/2-1/2"]
[Annotator "TA"]
[ECO "C55"]
[WhiteElo "2449"]
[BlackElo "2404"]
[PlyCount "131"]
[EventDate "2025.02.23"]
[EventType "tourn"]
[EventCountry "GER"]
[SourceTitle "playchess.com"]
[Source "ChessBase"]
[SourceQuality "1"]
[TimeControl "40/5400+30:1800+30"]

{[%evp 13,131,33,47,39,45,29,30,30,32,16,39,15,20,2,8,16,22,-4,-4,-19,-16,0,0,0,0,-47,-14,-20,35,0,0,-14,0,0,35,-99,0,0,0,0,0,0,0,0,24,19,41,0,0,0,0,0,0,0,0,-3,0,0,165,150,140,62,81,85,75,63,63,64,62,8,8,8,14,0,0,0,11,16,12,14,8,-24,-24,-24,-24,-25,-25,-25,-25,-21,-10,-69,-69,-69,-69,-69,-69,-69,-8,-37,-37,-69,-8,-8,0,-69,-69,-69,-69,-69,-69,-69,-69,-69,-69,-69,-69,-69,-69,-69]} 1. e4 {[%emt 0:00:04]} e5 {[%emt 0:01:05]} 2. Nf3 {[%emt 0:00:20]} Nc6 {[%emt 0:00:23]} 3. Bc4 {[%emt 0:00:14]} Nf6 {[%emt 0:01:41]} 4. d3 {[%emt 0:00:43]} Be7 {[%emt 0:01:13]} 5. O-O {[%emt 0:01:30]} O-O {[%emt 0:00:22]} 6. Re1 {[%emt 0:00:10]} d6 {[%emt 0:00:22]} 7. a4 {[%emt 0:00:15]} Na5 {[%emt 0:01:37]} 8. Ba2 {[%emt 0:00:33] C55: Two Knights: 4 d3, 4 d4 exd4 5 e5 and Max Lange Attack.} c5 {[%emt 0:01:17]} 9. Nbd2 {[%emt 1:31:11][%cal Bb1d2,Bd2f1,Bf1g3][%mdl 32]} Nc6 {[%emt 0:01:28]} 10. c3 {[%emt 0:00:00] White has an edge.} h6 {[%emt 0:01:49]} 11. Nf1 {[%emt 0:00:00]} Re8 {[%emt 0:09:21]} 12. Ng3 {[%emt 0:00:00]} Bf8 {[%emt 0:03:29]} 13. h3 {[%emt 0:00:00]} d5 {[%emt 0:28:32]} 14. exd5 {[%emt 0:00:00]} Nxd5 {[%emt 0:01:38]} 15. Nh2 $146 {[%emt 0:00:00]} ({Predecessor:} 15. a5 Nf4 16. Bxf4 exf4 17. Rxe8 Qxe8 18. Ne4 Nxa5 19. Qd2 c4 20. Qxf4 Qa4 21. Qc1 {0-1 Ashton,A (2383)-Eckersley Waites,T (2314) BCF-chT1a 1718 (4NCL) 2017 (3.43)}) 15... Nf6 {[%emt 0:07:40]} 16. Ng4 {[%emt 0:00:00]} Nxg4 {[%emt 0:05:40]} 17. hxg4 {[%emt 0:00:00][%cal Og4g5] A sharp opening} Be6 {[%emt 0:00:11]} 18. Ne4 {[%emt 0:00:00]} Qd7 {[%emt 0:13:37]} 19. Re3 {[%emt 0:00:00]} (19. Bxe6 $11 {is superior.} Rxe6 20. g5) 19... Bxa2 {[%emt 0:06:09]} 20. Rxa2 {[%emt 0:00:00]} f6 {[%emt 0:00:33]} (20... Re6 $11) 21. a5 {[%emt 0:00:00]} Rad8 {[%emt 0:01:13]} 22. Ra4 {[%emt 0:00:00]} Qf7 {[%emt 0:01:16]} 23. Rf3 {[%emt 0:00:00][%cal Oc1h6]} c4 {[%emt 0:04:31]} 24. Qe2 {[%emt 0:04:13] [#]} (24. Bxh6 $14 {stays ahead.} Rxd3 25. Rxd3 cxd3 26. Be3) 24... Rxd3 {[%emt 0:00:57]} (24... Qd7 $1 $17 {[%cal Oc6d4] ...Nd4! is the strong threat.} 25. Qc2 cxd3 26. Qb3+ Kh8) 25. Rxd3 $11 {[%emt 0:00:35]} cxd3 {[%emt 0:00:02]} 26. Qxd3 {[%emt 0:00:06]} Rd8 {[%emt 0:00:24]} 27. Qc2 {[%emt 0:01:00]} a6 {[%emt 0:04:35]} 28. Be3 {[%emt 0:01:08]} Rd7 {[%emt 0:02:02]} 29. f3 {[%emt 0:01:33]} Qd5 {[%emt 0:01:09]} (29... Ne7 30. Bc5 h5 31. gxh5 Qxh5 32. Qb3+ Qf7) 30. Bb6 {[%emt 0:00:57]} Qd1+ {[%emt 0:00:29]} 31. Qxd1 {[%emt 0:00:05]} Rxd1+ {[%emt 0:00:01]} 32. Kf2 {[%emt 0:00:09]} Rc1 {[%emt 0:00:47]} 33. b4 {[%emt 0:01:32]} Rc2+ {[%emt 0:00:07]} 34. Kg3 {[%emt 0:00:18]} Ne7 {[%emt 0:01:05]} 35. Ra1 $1 {[%emt 0:00:31]} f5 $2 {[%emt 0:00:38]} (35... Nd5 $11) 36. gxf5 $18 {[%emt 0:00:17]} Nxf5+ {[%emt 0:00:03]} 37. Kh3 {[%emt 0:00:29]} (37. Kg4 $16 Nd6 38. Nxd6 Bxd6 39. Rd1) 37... Kf7 {[%emt 0:00:52]} 38. Rd1 {[%emt 0:00:16] [#] Wards off Nd6} Ke6 {[%emt 0:00:34]} 39. Rd8 {[%emt 0:01:14]} Be7 {[%emt 0:00:23]} 40. Rb8 {[%emt 0:00:14]} Nd6 {[%emt 0:00:41]} 41. Nxd6 {[%emt 0:07:09]} (41. Nc5+ $14 Kd5 42. Nxb7) 41... Bxd6 $11 {[%emt 0:00:23]} 42. Rxb7 {[%emt 0:00:07] Strongly threatening Ra7.} Rxc3 $14 {[%emt 0:01:43][%mdl 4096] Endgame KRB-KRB} 43. b5 {[%emt 0:04:17]} axb5 {[%emt 0:01:15][%cal Ba6b5,Bb5b4][%mdl 32]} 44. a6 $1 {[%emt 0:00:15]} (44. Rxg7 Ra3 45. Kg4 Ra4+ 46. Kh5 b4 $15) 44... Rc8 {[%emt 0:07:02]} 45. Be3 {[%emt 0:08:50][%mdl 1024] White has compensation.} (45. Rxg7 $6 Kd5 $16) 45... b4 {[%emt 0:04:57]} 46. a7 {[%emt 0:03:31][%cal Oh3g3]} Kd5 {[%emt 0:02:07]} 47. Bd2 {[%emt 0:02:26]} (47. Rxg7 $6 Kc6 $16) (47. Kg3 {is interesting.} e4+ 48. Kf2 exf3 49. Kxf3 Ra8 50. Rxg7 b3 51. Rb7) 47... Kc6 {[%emt 0:02:34]} 48. Rb8 {[%emt 0:02:12]} Rxb8 {[%emt 0:00:21]} (48... Bxb8 $2 49. a8=Q+ (49. a8=B+ $2 {is the wrong capture.} Kb5 $19) 49... Kb6 50. Bxb4 $18) 49. axb8=Q {[%emt 0:00:06]} Bxb8 {[%emt 0:00:04]} 50. Bxb4 $11 {[%emt 0:00:04] KB-KB. Black is a pawn up.} Bd6 {[%emt 0:00:09]} 51. Bd2 {[%emt 0:00:39]} Kd5 {[%emt 0:00:18]} 52. g4 {[%emt 0:00:05]} (52. Kg4 $1 $11) 52... Be7 {[%emt 0:00:31]} 53. Kg2 {[%emt 0:00:13]} Bg5 {[%emt 0:00:57]} 54. Bb4 {[%emt 0:00:30]} Kd4 {[%emt 0:05:16]} 55. Bf8 {[%emt 0:00:23]} Bf6 {[%emt 0:00:35]} (55... g6 $1 $15) 56. Ba3 {[%emt 0:00:24]} Ke3 {[%emt 0:00:33]} 57. Bc1+ {[%emt 0:00:06]} Ke2 {[%emt 0:00:11]} (57... Kd3 $15) 58. Ba3 $1 {[%emt 0:00:05]} Bg5 {[%emt 0:02:23]} 59. Bb2 {[%emt 0:00:30]} (59. Bf8 $11) 59... Bf4 $15 {[%emt 0:00:09] Black is slightly better.} 60. Ba3 {[%emt 0:00:14]} g6 {[%emt 0:02:12]} 61. Be7 {[%emt 0:00:28]} Ke3 {[%emt 0:01:21]} 62. Bc5+ {[%emt 0:00:15]} Kd3 {[%emt 0:00:03]} 63. Bf8 {[%emt 0:00:05]} Bg5 {[%emt 0:00:32]} 64. Bg7 {[%emt 0:00:14]} Kd4 {[%emt 0:00:33]} 65. Bf8 {[%emt 0:00:07]} Kd5 {[%emt 0:00:16]} 66. Ba3 {[%emt 0:00:24] Weighted Error Value: White=0.19 (very precise) /Black=0.17 (very precise)   Loses game:     	---       	Black=1      Mistake:       	White=6     	Black=4      Inaccurate:     	White=6     	Black=2      OK:         	White=20    	Black=18     Best:        	White=3     	Black=3      Strong:       	White=3     	---} 1/2-1/2

[Event "Berliner IM-Turnier 2025"]
[Site "Berlin"]
[Date "2025.02.25"]
[Round "2.9"]
[White "Poltorak, Sebastian"]
[Black "Moritz, Aron"]
[Result "0-1"]
[Annotator "TA"]
[ECO "B50"]
[WhiteElo "2407"]
[BlackElo "2276"]
[PlyCount "104"]
[EventDate "2025.02.23"]
[EventType "tourn"]
[EventCountry "GER"]
[SourceTitle "playchess.com"]
[Source "ChessBase"]
[SourceQuality "1"]
[TimeControl "40/5400+30:1800+30"]

{[%evp 9,104,20,21,11,10,11,30,16,17,6,50,21,59,56,70,43,46,0,1,-9,-28,-14,-13,-30,-28,-79,-75,-30,-39,-106,-100,-135,-141,-130,-138,-152,-132,-133,-129,-160,-118,-154,-137,-187,-169,-194,-193,-216,-210,-266,-245,-243,-232,-230,-189,-219,-202,-405,-402,-494,-433,-421,-339,-484,-476,-476,-457,-447,-454,-670,-628,-864,-872,-877,-864,-752,-762,-1010,-941,-1011,-990,-1527,-1452,-29981,-5704,-5540,-4829,-2993,-2080,-29977,-29979,-29979,-29978,-29976,-29977,-29986,-1509]} 1. e4 {[%emt 0:00:03]} c5 {[%emt 0:02:57]} 2. Nf3 {[%emt 0:00:09]} d6 {[%emt 0:00:12]} 3. c3 {[%emt 0:00:07]} Nf6 {[%emt 0:01:53]} 4. Be2 {[%emt 0:00:07]} e5 {[%emt 0:06:49]} 5. O-O {[%emt 0:06:25]} Be7 {[%emt 0:20:26][%cal Oe8g8]} 6. Bb5+ {[%emt 0:02:15] B50: Sicilian: 2...d6, Miscellaneous.} Nbd7 {[%emt 0:01:16]} 7. Re1 {[%emt 0:01:13]} O-O {[%emt 0:06:17]} 8. d4 {[%emt 0:01:47] White has an edge.} a6 {[%emt 0:03:28]} 9. Bf1 {[%emt 0:04:00]} b6 {[%emt 0:03:01]} 10. Nbd2 {[%emt 0:12:32]} Bb7 {[%emt 0:02:44]} 11. d5 {[%emt 0:06:47]} g6 {[%emt 0:07:16]} 12. g3 $146 {[%emt 0:11:45]} (12. Bd3 Ne8 13. g4 Ndf6 14. h3 h5 15. Nh2 Kg7 16. Ndf1 Rh8 17. c4 hxg4 18. hxg4 {0-1 Khamrakulov,D (2496)-Vorontsov,P (2559) Saint Louis Winter GM 2018 (6)}) 12... Ne8 {[%emt 0:00:41]} 13. h4 {[%emt 0:06:28]} Ng7 {[%emt 0:08:06]} 14. Nc4 {[%emt 0:04:59]} b5 {[%emt 0:03:06]} 15. Ne3 {[%emt 0:00:16]} f5 {[%emt 0:04:03] Inhibits Ng4.} 16. exf5 {[%emt 0:01:02]} gxf5 {[%emt 0:00:17]} 17. Bh3 {[%emt 0:00:50]} (17. a4 $1 $11) 17... e4 $17 {[%emt 0:01:51]} 18. Nh2 {[%emt 0:04:14][%cal Oe3f5]} Ne5 {[%emt 0:01:13]} 19. Ng2 {[%emt 0:00:19] Black keeps a firm grip on the game.} (19. h5 $15) 19... Nd3 {[%emt 0:01:07] Black is more active.} 20. Nf4 {[%emt 0:02:54]} Nxe1 {[%emt 0:02:35]} 21. Qxe1 {[%emt 0:00:04]} Bf6 {[%emt 0:01:36]} 22. Be3 {[%emt 0:02:07]} Qe7 {[%emt 0:04:33]} 23. Qd2 {[%emt 0:00:28]} Qf7 {[%emt 0:01:53]} 24. Re1 {[%emt 0:05:38]} Rae8 {[%emt 0:01:12]} 25. Rd1 {[%emt 0:04:43]} Kh8 {[%emt 0:00:20]} 26. b3 {[%emt 0:03:07]} (26. Qe2 $17) 26... Bc8 {[%emt 0:00:13]} 27. c4 {[%emt 0:01:27]} Bd7 {[%emt 0:01:21]} 28. Qe2 {[%emt 0:01:56]} bxc4 {[%emt 0:03:59]} 29. Qxc4 {[%emt 0:00:18]} Bb5 {[%emt 0:01:15]} 30. Qc1 {[%emt 0:00:35]} Be5 {[%emt 0:01:57]} 31. a4 {[%emt 0:01:11]} Bd7 {[%emt 0:00:09]} 32. Bf1 {[%emt 0:01:12]} Rb8 {[%emt 0:01:08]} 33. Qc2 {[%emt 0:01:44]} (33. Bc4) 33... Nh5 $19 {[%emt 0:04:03]} 34. Bxa6 {[%emt 0:04:38]} Nxf4 {[%emt 0:00:18]} 35. gxf4 {[%emt 0:00:05]} Bf6 {[%emt 0:00:46]} 36. Kf1 {[%emt 0:02:35]} (36. Nf1 {keeps fighting.}) 36... Qh5 {[%emt 0:02:53]} ({Not} 36... Bxh4 37. Bc4 $19) 37. Ke1 {[%emt 0:00:05]} Qxh4 {[%emt 0:01:02]} (37... Bxh4 $2 38. Nf1 $19) 38. Nf1 {[%emt 0:00:04]} Rg8 {[%emt 0:00:51]} 39. Kd2 {[%emt 0:01:48] [#]} (39. Be2 $142) 39... Bxa4 $1 {[%emt 0:00:21]} 40. Bc4 {[%emt 0:00:24]} (40. Rb1 Be8) 40... Bb5 {[%emt 0:00:37]} 41. Bxb5 {[%emt 0:33:06]} Rxb5 {[%emt 0:30:13]} 42. Ng3 {[%emt 0:00:58]} Qg4 {[%emt 0:00:00]} 43. Qc4 {[%emt 0:00:00]} Rgb8 {[%emt 0:00:00]} 44. Rb1 {[%emt 0:00:00]} Ra5 {[%emt 0:00:00]} 45. Kc1 {[%emt 0:00:00]} Ra2 {[%emt 0:00:00] [#] ...Rb4 is the strong threat.} 46. Qf1 {[%emt 0:00:00]} Bd4 {[%emt 0:00:00]} (46... Bc3 $142 47. Qd1 Bb2+ 48. Kd2 Bd4+ 49. Ke1 Bc3+ (49... Bxe3 $2 50. Qxg4 Bxf2+ 51. Kf1 $19) 50. Bd2 Bxd2+ (50... Rxd2 $2 51. Qxg4 Rb2+ 52. Kd1 $19) 51. Qxd2 Rxd2 52. Kxd2 Qxf4+ 53. Ke1 e3 54. fxe3 Qxg3+ 55. Kd2 Qf2+ 56. Kd3 c4+ 57. Kc3 Qe2 (57... Qxe3+ 58. Kxc4 Qe4+ 59. Kc3 Rc8+ 60. Kb2 Qd4+ 61. Ka3 Ra8#) (57... cxb3 58. Rb2 Qxe3+ 59. Kc4 Rc8+ 60. Kb5 Qc5+ 61. Ka4 Ra8+ 62. Kxb3 Ra3#) 58. bxc4 Rxb1 59. c5 dxc5 60. d6 Rb2 61. d7 Qc2#) 47. Qe1 {[%emt 0:00:00]} Rb7 {[%emt 0:00:00]} 48. b4 {[%emt 0:00:00]} Bf6 {[%emt 0:00:00] ( -> ...cxb4)} 49. b5 {[%emt 0:00:00]} Qg8 {[%emt 0:00:00] Black mates.} 50. Qd1 {[%emt 0:00:00]} Qa8 {[%emt 0:00:00]} 51. Qb3 {[%emt 0:00:00]} Ra3 {[%emt 0:00:00]} 52. Qd1 {[%emt 0:00:00]} Rc3+ {[%emt 0:00:00] Weighted Error Value: White=0.83/Black=0.15 (very precise)   Mistake:       	White=6     	---        Inaccurate:     	White=6     	Black=2      OK:         	White=5     	Black=17     Best:        	White=3     	Black=1} (52... Rxb5 $142 53. Qc2 Rxb1+ 54. Qxb1 Ra1 (54... Qxd5 $2 55. Qb8+ Kg7 56. Nxf5+ Qxf5 57. Qc7+ Kg6 58. Qxd6 $19) 55. Qxa1 Qxa1+ 56. Kc2 Qb2+ 57. Kd1 Qb1+ 58. Kd2 Bd8 59. Ne2 Ba5+ 60. Nc3 Qd3+ (60... Kg7 {is a self mate.} 61. f3 Qd3+ 62. Kc1 Qxe3+ 63. Kc2 Qxc3+ 64. Kb1 exf3 65. Ka2 Qc2+ 66. Ka3 Bb4#) 61. Kc1 Bxc3 (61... Qxc3+ 62. Kb1 Bb4 63. Bc1 Qb3+ 64. Bb2+ Bc3 65. Kc1 Qxb2+ 66. Kd1 Qd2#) 62. f3 Qxe3+ 63. Kc2 Qd2+ (63... exf3 64. Kb3 f2 65. Ka4 f1=Q 66. Kb3 Bg7+ 67. Kc2 Qfd3#) 64. Kb3 Qb2+ 65. Kc4 Qb4#) 0-1

[Event "Berliner IM-Turnier 2025"]
[Site "Berlin"]
[Date "2025.02.25"]
[Round "2.10"]
[White "Florstedt, Johannes"]
[Black "Muse, Drazen"]
[Result "1-0"]
[Annotator "TA"]
[ECO "B00"]
[WhiteElo "2349"]
[BlackElo "2309"]
[PlyCount "53"]
[EventDate "2025.02.23"]
[EventType "tourn"]
[EventCountry "GER"]
[SourceTitle "playchess.com"]
[Source "ChessBase"]
[SourceQuality "1"]
[TimeControl "40/5400+30:1800+30"]

{[%evp 9,53,52,56,41,51,20,11,6,15,0,62,39,89,96,97,108,108,108,100,109,124,114,143,145,132,134,182,130,129,122,130,121,117,114,164,161,161,170,468,472,457,471,459,427,29985,29986]} 1. e4 {[%emt 0:00:02]} Nc6 {[%emt 0:06:05]} 2. Nf3 {[%emt 0:00:22]} d6 {[%emt 0:00:25]} 3. d4 {[%emt 0:00:14][%cal Bd2d4,Bd4d5][%mdl 32]} Nf6 {[%emt 0:00:06]} 4. Nc3 {[%emt 0:00:05]} g6 {[%emt 0:00:32]} 5. d5 {[%emt 0:00:22]} Nb8 {[%emt 0:00:31]} 6. Be3 {[%emt 0:00:26] B00: Queen's Fianchetto Defence, Nimzowitsch Defence.} Bg7 {[%emt 0:01:17]} 7. Qd2 {[%emt 0:00:07]} c6 {[%emt 0:00:11]} 8. h3 {[%emt 0:01:42] The position is equal.} O-O {[%emt 0:00:26] has lost popularity (8...Nbd7).} 9. O-O-O {[%emt 0:02:16]} cxd5 {[%emt 0:13:10]} (9... b5 $11) 10. exd5 $14 {[%emt 0:01:34]} Bd7 $146 {[%emt 0:04:27]} ({Black should try} 10... Nbd7 $14) ({Predecessor:} 10... Nbd7 11. Bh6 a6 12. h4 Qb6 13. Bxg7 Kxg7 14. h5 Ng4 15. Nd4 Ndf6 16. f3 Ne5 {1-0 Ljepic,A (1786)-Shearsby,J (1532) EU-ch U10 Bratislava 2019 (4)}) 11. Bh6 $16 {[%emt 0:07:35] White is more active.} Qb6 {[%emt 0:09:05]} 12. Bxg7 {[%emt 0:11:05]} Kxg7 {[%emt 0:00:13]} 13. g4 {[%emt 0:04:08]} Na6 {[%emt 0:02:42]} 14. Nd4 {[%emt 0:09:08]} Kg8 {[%emt 0:09:19]} 15. Bg2 {[%emt 0:03:34]} Rac8 {[%emt 0:03:13]} 16. Rhe1 {[%emt 0:00:42]} Rfe8 {[%emt 0:00:14]} 17. f4 {[%emt 0:04:00][%cal Bf2f4,Bf4f5][%mdl 32]} Nc5 {[%emt 0:05:20]} (17... Qa5 $16 {keeps fighting.}) 18. Re3 {[%emt 0:03:23]} ({White should play} 18. Bf3 $1 $18) 18... Na4 {[%emt 0:09:50]} 19. Nxa4 {[%emt 0:06:38]} Bxa4 {[%emt 0:00:18]} 20. b3 {[%emt 0:00:37]} Bd7 {[%emt 0:00:40] [#]} 21. Rde1 $1 {[%emt 0:00:29]} Kf8 {[%emt 0:00:22]} (21... a5 $16) 22. f5 $18 {[%emt 0:13:02]} Qc5 {[%emt 0:00:27]} 23. Kb1 {[%emt 0:05:20]} Nxd5 $2 {[%emt 0:02:52] White has space advantage and is better} (23... a5) 24. Bxd5 {[%emt 0:00:08]} Qxd5 {[%emt 0:00:03]} 25. Rd3 {[%emt 0:01:12] and Nf3 should not be overlooked} Kg8 {[%emt 0:01:54]} 26. Qh6 {[%emt 0:12:35]} ({Weaker is} 26. Ne6 Qc6 $16) 26... Qc5 {[%emt 0:06:47] [#]} (26... Qa5 $18) 27. Rxe7 $1 {[%emt 0:00:50] Weighted Error Value: White=0.05 (flawless) /Black=0.67  Mistake:       	White=1     	Black=6      Inaccurate:     	White=1     	---        OK:         	White=10    	Black=8      Best:        	White=1     	---        Strong:       	White=1     	---        Brilliant:      	White=1     	---} 1-0

[Event "Berliner IM-Turnier 2025"]
[Site "Berlin"]
[Date "2025.02.25"]
[Round "3.6"]
[White "Muse, Drazen"]
[Black "Zobel, Christian"]
[Result "1/2-1/2"]
[Annotator "RC"]
[ECO "A34"]
[WhiteElo "2309"]
[BlackElo "2188"]
[PlyCount "41"]
[EventDate "2025.02.23"]
[EventType "tourn"]
[EventCountry "GER"]
[SourceTitle "playchess.com"]
[Source "ChessBase"]
[SourceQuality "1"]
[TimeControl "40/5400+30:1800+30"]

1. Nf3 {[%emt 0:00:38]} Nf6 {[%emt 0:01:44]} 2. c4 {[%emt 0:01:02]} c5 {[%emt 0:01:01]} 3. Nc3 {[%emt 0:01:13]} d5 {[%emt 0:06:01]} 4. cxd5 {[%emt 0:01:18]} Nxd5 {[%emt 0:00:02]} 5. g3 {[%emt 0:03:25]} Nc6 {[%emt 0:02:24]} 6. Bg2 {[%emt 0:03:26]} Nxc3 {[%emt 0:01:59]} 7. bxc3 {[%emt 0:00:17]} e5 {[%emt 0:00:37]} 8. O-O {[%emt 0:03:01]} Be7 {[%emt 0:02:34]} 9. Ne1 {[%emt 0:01:21]} O-O {[%emt 0:05:48]} 10. Nc2 {[%emt 0:01:17]} Be6 {[%emt 0:02:17]} 11. d3 {[%emt 0:01:40]} Qd7 {[%emt 0:03:16]} 12. Ne3 {[%emt 0:03:55]} Bh3 {[%emt 0:08:01]} 13. Bxh3 {[%emt 0:00:23]} Qxh3 {[%emt 0:00:03]} 14. Rb1 {[%emt 0:00:27]} b6 {[%emt 0:06:30]} 15. Qa4 {[%emt 0:00:58]} Rac8 {[%emt 0:02:22]} 16. Qe4 {[%emt 0:01:34]} f5 {[%emt 0:07:39]} 17. Qd5+ {[%emt 0:00:26]} Kh8 {[%emt 0:00:16]} 18. Qg2 {[%emt 0:00:20]} Qh5 {[%emt 0:01:46]} 19. f4 {[%emt 0:03:43]} exf4 {[%emt 0:04:06]} 20. gxf4 {[%emt 0:00:04]} Bd6 {[%emt 0:09:23]} 21. Qf3 {[%emt 0:00:29]} 1/2-1/2

[Event "Berliner IM-Turnier 2025"]
[Site "Berlin"]
[Date "2025.02.25"]
[Round "3.7"]
[White "Moritz, Aron"]
[Black "Florstedt, Johannes"]
[Result "1/2-1/2"]
[Annotator "TA"]
[ECO "B51"]
[WhiteElo "2276"]
[BlackElo "2349"]
[PlyCount "114"]
[EventDate "2025.02.23"]
[EventType "tourn"]
[EventCountry "GER"]
[SourceTitle "playchess.com"]
[Source "ChessBase"]
[SourceQuality "1"]
[TimeControl "40/5400+30:1800+30"]

{[%evp 9,114,3,2,7,4,0,13,0,4,0,0,-1,-7,-19,-12,-18,-11,-19,-14,-27,-26,-27,-18,-32,-41,-42,-52,-54,-56,-56,-54,-46,-57,-45,-9,-4,-17,-20,-39,-44,-2,-19,0,0,0,6,20,-16,49,16,111,100,218,205,212,164,171,152,377,379,381,251,238,249,232,129,128,133,130,112,125,98,98,0,87,45,54,28,34,39,41,25,34,25,41,13,13,0,13,13,13,13,13,0,13,13,13,13,13,0,47,0,0,0,60,0,0]} 1. e4 {[%emt 0:02:46]} c5 {[%emt 0:00:05]} 2. Nf3 {[%emt 0:00:14]} d6 {[%emt 0:00:05]} 3. Bb5+ {[%emt 0:00:20]} Nd7 {[%emt 0:02:53]} 4. Ba4 {[%emt 0:00:24]} a6 {[%emt 0:01:29]} 5. c4 {[%emt 0:00:19]} Ngf6 {[%emt 0:00:07]} 6. Nc3 {[%emt 0:11:39] B51: Sicilian: Moscow Variation (3 Bb5+) without 3...Bd7.} e6 {[%emt 0:02:13]} 7. O-O {[%emt 0:00:20]} Be7 {[%emt 0:00:15]} 8. d3 {[%emt 0:01:39]} O-O {[%emt 0:00:12]} 9. h3 {[%emt 0:07:07]} Ne5 $1 {[%emt 0:05:43][%mdl 4] is recently more successful than 9...Qc7.} 10. Ne1 {[%emt 0:05:26]} Bd7 {[%emt 0:00:12]} 11. f4 $146 {[%emt 0:09:50]} (11. Bxd7 Nfxd7 12. f4 Nc6 13. Nf3 Bf6 14. a4 Nd4 15. g4 Nxf3+ 16. Qxf3 Nb8 17. g5 {0-1 Shubin,K (2454)-Savchenko,B (2550) RUS-ch Blitz 2022 (5)}) 11... Bxa4 {[%emt 0:00:18]} 12. Qxa4 {[%emt 0:00:13]} Nc6 {[%emt 0:00:19]} 13. Nf3 {[%emt 0:02:49]} Nd7 {[%emt 0:07:11]} 14. Be3 {[%emt 0:06:23] [#]} b5 $1 {[%emt 0:03:58]} 15. Qc2 {[%emt 0:01:42]} (15. Qd1 Qa5) 15... Rb8 {[%emt 0:22:16]} 16. Qf2 {[%emt 0:18:44]} Bf6 {[%emt 0:02:25]} 17. cxb5 {[%emt 0:04:48]} axb5 {[%emt 0:00:18][%cal Ba6b5,Bb5b4][%mdl 32]} 18. d4 {[%emt 0:00:17]} cxd4 {[%emt 0:08:09]} 19. Nxd4 {[%emt 0:00:10]} Nxd4 {[%emt 0:00:10]} 20. Bxd4 {[%emt 0:00:05]} b4 {[%emt 0:00:14]} 21. Ne2 {[%emt 0:02:23]} e5 {[%emt 0:01:01]} 22. fxe5 {[%emt 0:10:50]} dxe5 {[%emt 0:01:18]} 23. Ba7 {[%emt 0:00:06]} Rc8 {[%emt 0:00:55]} 24. a3 {[%emt 0:00:11]} Rc2 {[%emt 0:00:55]} 25. axb4 {[%emt 0:00:36]} Qe7 {[%emt 0:07:51]} 26. Rfd1 {[%emt 0:07:09]} Rxb2 {[%emt 0:06:38][%cal Of6h4]} 27. Rab1 {[%emt 0:00:11]} Bh4 {[%emt 0:04:20]} 28. Qe3 {[%emt 0:00:53]} Bg5 {[%emt 0:00:30]} (28... Qxb4 $2 29. Rxb2 Qxb2 30. Rxd7 $18) (28... Ra2 $11) 29. Qf3 $14 {[%emt 0:02:31]} Ra2 {[%emt 0:03:53] [#]} (29... Rxb1 $11 {keeps the balance.} 30. Rxb1 Rc8) 30. Bf2 $1 $16 {[%emt 0:00:20]} Rc8 {[%emt 0:00:25]} (30... Qe6 $16) 31. Nc3 $18 {[%emt 0:01:22]} Rc2 {[%emt 0:05:04]} 32. Nd5 {[%emt 0:00:06]} Qe6 {[%emt 0:03:26]} 33. b5 {[%emt 0:03:24][%cal Bb4b5,Bb5b6][%mdl 32]} g6 $2 {[%emt 0:00:59] Counterplay White} (33... Nc5 $16 {was worth a try.} 34. b6 Rb8 35. Bxc5 Rxc5) 34. b6 {[%emt 0:00:14]} Rb8 {[%emt 0:00:56]} 35. Qd3 {[%emt 0:01:04]} Rxf2 {[%emt 0:06:05]} 36. Kxf2 {[%emt 0:00:05] b7 would now be deadly.} Nxb6 {[%emt 0:00:46] [#]} 37. Rb5 {[%emt 0:01:38]} (37. Qa6 $1 $18 Nd7 38. Rxb8+ Nxb8 39. Qxe6 fxe6 40. Nb6) 37... Nd7 $16 {[%emt 0:00:31][%cal Bb6d7,Bd7b8,Bb8c6,Bc6d4][%mdl 32]} 38. Rxb8+ {[%emt 0:00:34]} Nxb8 {[%emt 0:00:01]} 39. Kg1 {[%emt 0:00:34]} Nc6 {[%emt 0:00:36]} 40. Qa6 {[%emt 0:00:25]} Nd4 {[%emt 0:03:34]} 41. Qd3 {[%emt 0:08:59]} (41. Ra1 $16) 41... Qc6 {[%emt 0:06:03]} (41... Nc6 $1 $11) 42. Rb1 {[%emt 0:01:25]} h5 {[%emt 0:01:06][%cal Bh7h5,Bh5h4][%mdl 32]} 43. Kh1 {[%emt 0:01:31]} h4 {[%emt 0:02:02] Prevents Qg3} 44. Qf1 {[%emt 0:01:59]} Kg7 {[%emt 0:01:34]} 45. Kh2 {[%emt 0:01:39]} Ne6 {[%emt 0:03:11]} 46. Qf3 {[%emt 0:03:15]} Qc2 {[%emt 0:03:01]} 47. Rf1 {[%emt 0:02:06]} Nf4 {[%emt 0:00:42]} 48. Rf2 {[%emt 0:04:23]} (48. Kh1 {simplifies} Qc4 49. Nxf4 Bxf4 50. Rd1) 48... Qb1 {[%emt 0:01:07]} 49. Ne3 {[%emt 0:04:19]} Qa1 {[%emt 0:06:11]} 50. Rf1 {[%emt 0:01:35]} Qb2 {[%emt 0:00:24]} 51. Rf2 {[%emt 0:01:07]} Qa1 {[%emt 0:01:22]} 52. Ng4 {[%emt 0:01:48]} Qd4 {[%emt 0:01:59]} 53. Rf1 {[%emt 0:00:21]} Qb2 {[%emt 0:01:03]} 54. Kh1 {[%emt 0:00:49]} f6 {[%emt 0:04:50]} (54... Kh8 $11) 55. Rf2 {[%emt 0:01:02]} (55. Rd1 $14 {is superior.}) 55... Qb1+ $11 {[%emt 0:01:32]} 56. Rf1 {[%emt 0:00:23]} (56. Kh2 $11) 56... Qb2 $14 {[%emt 0:00:07]} 57. Rf2 {[%emt 0:00:05]} ({White should play} 57. Rd1 $14) 57... Qb1+ {[%emt 0:00:10] Black escapes into a draw.   Weighted Error Value: White=0.19 (very precise) /Black=0.18 (very precise)   Loses game:     	---       	Black=1      Mistake:       	White=5     	Black=5      Inaccurate:     	White=5     	Black=2      OK:         	White=13    	Black=28     Best:        	White=4     	---        Strong:       	White=1     	---} 1/2-1/2